[Event "SS Manhem Chess Week GM and IM tournaments 2018"]
[Site "Molnlycke kulturhus, Biblioteksgatan 2, Molnlycke, Sweden"]
[Date "2018.08.14"]
[Round "5.4"]
[White "Sammalvuo, Tapani"]
[Black "Brynell, Stellan"]
[Result "1/2-1/2"]
[TimeControl "90 minutes for 40 moves + 30 minutes for the rest of the game + 30 seconds per move from move one."]
[WhiteTitle "IM"]
[BlackTitle "GM"]
[WhiteFideId "501115"]
[BlackFideId "1700219"]
[WhiteElo "2411"]
[BlackElo "2391"]

1. d4 {[%clk 01:30:57]} {[%emt 00:00:02]} Nf6 {[%clk 01:30:40]} {[%emt
00:00:20]} 2. c4 {[%clk 01:31:25]} {[%emt 00:00:02]} e6 {[%clk 01:31:04]}
{[%emt 00:00:07]} 3. Nf3 {[%clk 01:31:52]} {[%emt 00:00:03]} b6 {[%clk
01:31:04]} {[%emt 00:00:29]} 4. g3 {[%clk 01:32:16]} {[%emt 00:00:06]} Bb7
{[%clk 01:31:26]} {[%emt 00:00:08]} 5. Bg2 {[%clk 01:32:44]} {[%emt 00:00:02]}
Be7 {[%clk 01:31:37]} {[%emt 00:00:19]} 6. O-O {[%clk 01:33:10]} {[%emt
00:00:04]} O-O {[%clk 01:31:58]} {[%emt 00:00:09]} 7. Re1 {[%clk 01:33:38]}
{[%emt 00:00:02]} c5 {[%clk 01:30:54]} {[%emt 00:01:34]} 8. d5 {[%clk
01:34:02]} {[%emt 00:00:07]} exd5 {[%clk 01:31:20]} {[%emt 00:00:05]} 9. Nh4
{[%clk 01:34:26]} {[%emt 00:00:05]} Ne4 {[%clk 01:30:37]} {[%emt 00:01:13]} 10.
cxd5 {[%clk 01:34:53]} {[%emt 00:00:03]} Bxh4 {[%clk 01:30:53]} {[%emt
00:00:14]} 11. Bxe4 {[%clk 01:35:21]} {[%emt 00:00:02]} Bf6 {[%clk 01:30:46]}
{[%emt 00:00:37]} 12. Nc3 {[%clk 01:35:16]} {[%emt 00:00:36]} d6 {[%clk
01:28:27]} {[%emt 00:02:49]} 13. Qc2 {[%clk 01:35:42]} {[%emt 00:00:03]} h6
{[%clk 01:27:45]} {[%emt 00:01:12]} 14. Bf4 {[%clk 01:36:06]} {[%emt 00:00:06]}
a6 {[%clk 01:25:00]} {[%emt 00:03:16]} 15. Bg2 {[%clk 01:27:01]} {[%emt
00:09:35]} Qe7 {[%clk 01:18:39]} {[%emt 00:06:52]} 16. Rad1 {[%clk 01:22:32]}
{[%emt 00:04:58]} Nd7 {[%clk 01:17:19]} {[%emt 00:01:50]} 17. Bd2 {[%clk
01:12:01]} {[%emt 00:11:01]} b5 {[%clk 00:54:21]} {[%emt 00:23:28]} 18. Ne4
{[%clk 01:11:53]} {[%emt 00:00:38]} Rfe8 {[%clk 00:37:32]} {[%emt 00:17:19]} 19.
Nxf6+ {[%clk 01:11:20]} {[%emt 00:01:02]} Nxf6 {[%clk 00:37:31]} {[%emt
00:00:32]} 20. e4 {[%clk 01:10:41]} {[%emt 00:01:09]} b4 {[%clk 00:34:24]}
{[%emt 00:03:38]} 21. e5 {[%clk 00:50:50]} {[%emt 00:20:20]} Nd7 {[%clk
00:31:21]} {[%emt 00:03:32]} 22. f4 {[%clk 00:15:58]} {[%emt 00:35:23]} Rad8
{[%clk 00:26:02]} {[%emt 00:05:48]} 23. e6 {[%clk 00:14:10]} {[%emt 00:02:18]}
Nb6 {[%clk 00:25:40]} {[%emt 00:00:52]} 24. f5 {[%clk 00:13:32]} {[%emt
00:01:09]} Bxd5 {[%clk 00:20:46]} {[%emt 00:05:24]} 25. Bxd5 {[%clk 00:12:16]}
{[%emt 00:01:46]} Nxd5 {[%clk 00:21:07]} {[%emt 00:00:09]} 26. Bxh6 {[%clk
00:10:32]} {[%emt 00:02:14]} Nc7 {[%clk 00:18:05]} {[%emt 00:03:32]} 27. Re4
{[%clk 00:08:28]} {[%emt 00:02:33]} Qf6 {[%clk 00:14:50]} {[%emt 00:03:45]} 28.
exf7+ {[%clk 00:07:40]} {[%emt 00:01:18]} Qxf7 {[%clk 00:13:47]} {[%emt
00:01:33]} 29. Rg4 {[%clk 00:06:14]} {[%emt 00:01:56]} Qh5 {[%clk 00:14:00]}
{[%emt 00:00:16]} 30. Rxg7+ {[%clk 00:05:42]} {[%emt 00:01:02]} Kh8 {[%clk
00:14:29]} {[%emt 00:00:01]} 31. f6 {[%clk 00:03:07]} {[%emt 00:03:05]} Qxh6
{[%clk 00:14:38]} {[%emt 00:00:21]} 32. Rxc7 {[%clk 00:03:35]} {[%emt
00:00:02]} Qe3+ {[%clk 00:09:06]} {[%emt 00:06:01]} 33. Kg2 {[%clk 00:04:04]}
{[%emt 00:00:02]} Qe2+ {[%clk 00:08:46]} {[%emt 00:00:51]} 34. Qxe2 {[%clk
00:04:32]} {[%emt 00:00:02]} Rxe2+ {[%clk 00:09:06]} {[%emt 00:00:10]} 35. Kh3
{[%clk 00:03:50]} {[%emt 00:01:12]} Rf2 {[%clk 00:08:31]} {[%emt 00:01:05]} 36.
Rd5 {[%clk 00:02:25]} {[%emt 00:01:55]} Rxf6 {[%clk 00:08:45]} {[%emt
00:00:16]} 37. Rh5+ {[%clk 00:02:47]} {[%emt 00:00:07]} Kg8 {[%clk 00:09:06]}
{[%emt 00:00:09]} 38. Rhh7 {[%clk 00:02:48]} {[%emt 00:00:29]} d5 {[%clk
00:08:50]} {[%emt 00:00:46]} 39. Rcg7+ {[%clk 00:03:05]} {[%emt 00:00:13]} Kf8
{[%clk 00:09:19]} {[%emt 00:00:02]} 40. Rc7 {[%clk 00:03:24]} {[%emt 00:00:11]}
Kg8 {[%clk 00:08:52]} {[%emt 00:00:57]} 41. Rhg7+ {[%clk 00:12:36]} {[%emt
00:21:18]} Kf8 {[%clk 00:33:47]} {[%emt 00:05:35]} 42. g4 {[%clk 00:12:16]}
{[%emt 00:00:50]} d4 {[%clk 00:27:53]} {[%emt 00:06:25]} 43. g5 {[%clk
00:12:43]} {[%emt 00:00:03]} Rf1 {[%clk 00:19:38]} {[%emt 00:08:44]} 44. g6
{[%clk 00:07:02]} {[%emt 00:06:11]} d3 {[%clk 00:16:58]} {[%emt 00:03:10]} 45.
Rh7 {[%clk 00:06:00]} {[%emt 00:01:32]} Kg8 {[%clk 00:17:17]} {[%emt 00:00:11]}
46. Rcg7+ {[%clk 00:05:46]} {[%emt 00:00:44]} Kf8 {[%clk 00:17:44]} {[%emt
00:00:03]} 47. Re7 {[%clk 00:05:08]} {[%emt 00:01:08]} Kg8 {[%clk 00:16:09]}
{[%emt 00:02:05]} 48. Rhg7+ {[%clk 00:04:14]} {[%emt 00:01:23]} Kf8 {[%clk
00:14:19]} {[%emt 00:02:22]} 49. Rh7 {[%clk 00:04:23]} {[%emt 00:00:20]} Kg8
{[%clk 00:14:25]} {[%emt 00:00:25]} 50. Reg7+ {[%clk 00:03:44]} {[%emt
00:01:09]} Kf8 {[%clk 00:14:41]} {[%emt 00:00:14]} 51. Ra7 {[%clk 00:03:55]}
{[%emt 00:00:19]} Kg8 {[%clk 00:14:56]} {[%emt 00:00:15]} 52. Rhg7+ {[%clk
00:03:59]} {[%emt 00:00:26]} Kf8 {[%clk 00:14:52]} {[%emt 00:00:34]} 53. Rh7
{[%clk 00:03:14]} {[%emt 00:01:14]} Kg8 {[%clk 00:15:16]} {[%emt 00:00:06]} 54.
Rhg7+ {[%clk 00:01:53]} {[%emt 00:01:51]} Kf8 {[%clk 00:15:34]} {[%emt
00:00:12]} 55. Rh7 {[%clk 00:01:56]} {[%emt 00:00:28]} 1/2-1/2

[Event "SS Manhem Chess Week GM and IM tournaments 2018"]
[Site "Molnlycke kulturhus, Biblioteksgatan 2, Molnlycke, Sweden"]
[Date "2018.08.14"]
[Round "5.5"]
[White "Gritsak, Orest"]
[Black "Lindberg, Bengt"]
[Result "1-0"]
[TimeControl "90 minutes for 40 moves + 30 minutes for the rest of the game + 30 seconds per move from move one."]
[WhiteTitle "GM"]
[BlackTitle "IM"]
[WhiteFideId "14102188"]
[BlackFideId "1700359"]
[WhiteElo "2464"]
[BlackElo "2416"]

1. d4 {[%clk 01:30:56]} {[%emt 00:00:03]} Nf6 {[%clk 01:30:49]} {[%emt
00:00:11]} 2. c4 {[%clk 01:31:16]} {[%emt 00:00:10]} e6 {[%clk 01:31:07]}
{[%emt 00:00:11]} 3. Nc3 {[%clk 01:31:38]} {[%emt 00:00:08]} Bb4 {[%clk
01:30:58]} {[%emt 00:00:39]} 4. Qc2 {[%clk 01:31:56]} {[%emt 00:00:13]} O-O
{[%clk 01:27:29]} {[%emt 00:03:58]} 5. a3 {[%clk 01:31:37]} {[%emt 00:00:50]}
Bxc3+ {[%clk 01:27:47]} {[%emt 00:00:12]} 6. Qxc3 {[%clk 01:32:02]} {[%emt
00:00:04]} b6 {[%clk 01:27:56]} {[%emt 00:00:21]} 7. Bg5 {[%clk 01:31:03]}
{[%emt 00:01:30]} Bb7 {[%clk 01:27:22]} {[%emt 00:01:03]} 8. e3 {[%clk
01:30:19]} {[%emt 00:01:15]} d6 {[%clk 01:26:21]} {[%emt 00:01:30]} 9. Ne2
{[%clk 01:28:04]} {[%emt 00:02:46]} Nbd7 {[%clk 01:25:54]} {[%emt 00:00:56]} 10.
Rd1 {[%clk 01:20:24]} {[%emt 00:08:10]} Ne4 {[%clk 01:19:18]} {[%emt 00:07:05]}
11. Bxd8 {[%clk 01:20:33]} {[%emt 00:00:22]} Nxc3 {[%clk 01:19:43]} {[%emt
00:00:06]} 12. Nxc3 {[%clk 01:20:57]} {[%emt 00:00:05]} Rfxd8 {[%clk 01:20:04]}
{[%emt 00:00:08]} 13. f3 {[%clk 01:15:14]} {[%emt 00:06:14]} Nf6 {[%clk
01:04:36]} {[%emt 00:15:58]} 14. e4 {[%clk 01:06:32]} {[%emt 00:09:12]} d5
{[%clk 00:53:09]} {[%emt 00:11:57]} 15. cxd5 {[%clk 01:04:18]} {[%emt
00:02:45]} exd5 {[%clk 00:52:24]} {[%emt 00:01:15]} 16. e5 {[%clk 01:04:35]}
{[%emt 00:00:13]} Nd7 {[%clk 00:51:45]} {[%emt 00:01:08]} 17. f4 {[%clk
00:57:32]} {[%emt 00:07:33]} c5 {[%clk 00:51:15]} {[%emt 00:01:00]} 18. g3
{[%clk 00:44:00]} {[%emt 00:14:03]} cxd4 {[%clk 00:33:17]} {[%emt 00:18:28]} 19.
Nb5 {[%clk 00:36:05]} {[%emt 00:08:25]} Nc5 {[%clk 00:28:19]} {[%emt 00:05:28]}
20. Nxd4 {[%clk 00:34:59]} {[%emt 00:01:36]} Rac8 {[%clk 00:27:27]} {[%emt
00:01:21]} 21. Kd2 {[%clk 00:26:06]} {[%emt 00:09:24]} f6 {[%clk 00:23:28]}
{[%emt 00:04:29]} 22. Bh3 {[%clk 00:19:15]} {[%emt 00:07:21]} Ne4+ {[%clk
00:23:35]} {[%emt 00:00:23]} 23. Ke3 {[%clk 00:19:37]} {[%emt 00:00:08]} fxe5
{[%clk 00:23:38]} {[%emt 00:00:27]} 24. fxe5 {[%clk 00:20:02]} {[%emt
00:00:05]} Rc4 {[%clk 00:22:18]} {[%emt 00:01:49]} 25. Rc1 {[%clk 00:08:22]}
{[%emt 00:12:12]} Nc5 {[%clk 00:17:51]} {[%emt 00:04:56]} 26. b4 {[%clk
00:07:34]} {[%emt 00:01:19]} Rxd4 {[%clk 00:04:59]} {[%emt 00:13:22]} 27. Kxd4
{[%clk 00:07:59]} {[%emt 00:00:05]} Nb3+ {[%clk 00:05:25]} {[%emt 00:00:04]} 28.
Kc3 {[%clk 00:07:16]} {[%emt 00:01:14]} Nxc1 {[%clk 00:05:30]} {[%emt
00:00:26]} 29. Rxc1 {[%clk 00:07:41]} {[%emt 00:00:05]} d4+ {[%clk 00:02:59]}
{[%emt 00:03:01]} 30. Kd2 {[%clk 00:08:05]} {[%emt 00:00:06]} Re8 {[%clk
00:02:39]} {[%emt 00:00:49]} 31. Rc7 {[%clk 00:05:16]} {[%emt 00:03:20]} Bd5
{[%clk 00:02:11]} {[%emt 00:00:57]} 32. Kd3 {[%clk 00:04:02]} {[%emt 00:01:45]}
Rxe5 {[%clk 00:01:19]} {[%emt 00:01:21]} 33. Kxd4 {[%clk 00:04:27]} {[%emt
00:00:05]} Rh5 {[%clk 00:01:38]} {[%emt 00:00:10]} 34. Bg4 {[%clk 00:04:33]}
{[%emt 00:00:26]} Rg5 {[%clk 00:01:04]} {[%emt 00:01:04]} 35. Rxa7 {[%clk
00:04:52]} {[%emt 00:00:11]} h5 {[%clk 00:00:52]} {[%emt 00:00:41]} 36. Be2
{[%clk 00:04:14]} {[%emt 00:01:09]} Bf7 {[%clk 00:00:43]} {[%emt 00:00:39]} 37.
Bf3 {[%clk 00:04:35]} {[%emt 00:00:09]} g6 {[%clk 00:00:43]} {[%emt 00:00:29]}
38. Re7 {[%clk 00:04:17]} {[%emt 00:00:49]} Rf5 {[%clk 00:00:49]} {[%emt
00:00:24]} 39. Ke3 {[%clk 00:04:22]} {[%emt 00:00:25]} Rf6 {[%clk 00:00:51]}
{[%emt 00:00:28]} 40. Re5 {[%clk 00:04:07]} {[%emt 00:00:46]} Rd6 {[%clk
00:00:55]} {[%emt 00:00:25]} 41. a4 {[%clk 00:03:30]} {[%emt 00:01:08]} Bc4
{[%clk 00:23:45]} {[%emt 00:07:38]} 42. Be4 {[%clk 00:33:04]} {[%emt 00:00:56]}
Kf7 {[%clk 00:24:09]} {[%emt 00:00:06]} 43. h4 {[%clk 00:29:11]} {[%emt
00:04:23]} Kf6 {[%clk 00:22:48]} {[%emt 00:01:50]} 44. Rg5 {[%clk 00:29:23]}
{[%emt 00:00:20]} Kf7 {[%clk 00:18:21]} {[%emt 00:04:57]} 45. a5 {[%clk
00:23:51]} {[%emt 00:06:03]} Bf1 {[%clk 00:14:03]} {[%emt 00:04:46]} 46. Rd5
{[%clk 00:15:03]} {[%emt 00:09:19]} Re6 {[%clk 00:13:54]} {[%emt 00:00:39]} 47.
Kd4 {[%clk 00:15:04]} {[%emt 00:00:29]} Kf6 {[%clk 00:11:32]} {[%emt 00:02:51]}
48. Rg5 {[%clk 00:09:25]} {[%emt 00:06:10]} Kg7 {[%clk 00:10:48]} {[%emt
00:01:13]} 49. Bxg6 {[%clk 00:07:06]} {[%emt 00:02:50]} Rxg6 {[%clk 00:10:21]}
{[%emt 00:00:56]} 50. Rxg6+ {[%clk 00:07:31]} {[%emt 00:00:05]} Kxg6 {[%clk
00:10:45]} {[%emt 00:00:06]} 51. axb6 {[%clk 00:07:58]} {[%emt 00:00:03]} Bg2
{[%clk 00:10:53]} {[%emt 00:00:22]} 52. Ke5 {[%clk 00:08:21]} {[%emt 00:00:07]}
Bh1 {[%clk 00:11:10]} {[%emt 00:00:13]} 53. b5 {[%clk 00:08:29]} {[%emt
00:00:22]} Bg2 {[%clk 00:11:04]} {[%emt 00:00:37]} 54. Kd6 {[%clk 00:06:54]}
{[%emt 00:02:05]} Kf5 {[%clk 00:11:29]} {[%emt 00:00:05]} 55. Kc7 {[%clk
00:07:20]} {[%emt 00:00:04]} Kg4 {[%clk 00:11:56]} {[%emt 00:00:03]} 56. b7
{[%clk 00:07:46]} {[%emt 00:00:05]} Bxb7 {[%clk 00:12:23]} {[%emt 00:00:03]} 57.
Kxb7 {[%clk 00:08:13]} {[%emt 00:00:03]} Kxg3 {[%clk 00:12:48]} {[%emt
00:00:05]} 58. b6 {[%clk 00:08:39]} {[%emt 00:00:04]} Kxh4 {[%clk 00:13:13]}
{[%emt 00:00:05]} 59. Ka7 {[%clk 00:09:02]} {[%emt 00:00:08]} Kh3 {[%clk
00:13:24]} {[%emt 00:00:19]} 60. b7 {[%clk 00:09:27]} {[%emt 00:00:05]} h4
{[%clk 00:13:43]} {[%emt 00:00:11]} 61. b8=Q {[%clk 00:09:48]} {[%emt
00:00:08]} 1-0

[Event "SS Manhem Chess Week GM and IM tournaments 2018"]
[Site "Molnlycke kulturhus, Biblioteksgatan 2, Molnlycke, Sweden"]
[Date "2018.08.14"]
[Round "5.6"]
[White "Kucuksari, Kaan"]
[Black "Vypkhaniuk, Ihor"]
[Result "0-1"]
[TimeControl "90 minutes for 40 moves + 30 minutes for the rest of the game + 30 seconds per move from move one."]
[WhiteTitle "FM"]
[BlackTitle "FM"]
[WhiteFideId "6380166"]
[BlackFideId "14112256"]
[WhiteElo "2329"]
[BlackElo "2357"]

1. d4 {[%clk 01:30:58]} {[%emt 00:00:01]} d6 {[%clk 01:30:44]} {[%emt
00:00:16]} 2. Nf3 {[%clk 01:31:22]} {[%emt 00:00:07]} g6 {[%clk 01:31:01]}
{[%emt 00:00:12]} 3. c4 {[%clk 01:31:47]} {[%emt 00:00:05]} Bg7 {[%clk
01:31:19]} {[%emt 00:00:11]} 4. Nc3 {[%clk 01:32:13]} {[%emt 00:00:05]} Nc6
{[%clk 01:31:28]} {[%emt 00:00:21]} 5. e4 {[%clk 01:31:49]} {[%emt 00:00:55]}
Bg4 {[%clk 01:26:54]} {[%emt 00:05:03]} 6. Be3 {[%clk 01:32:12]} {[%emt
00:00:07]} e5 {[%clk 01:24:50]} {[%emt 00:02:34]} 7. d5 {[%clk 01:32:20]}
{[%emt 00:00:23]} Nd4 {[%clk 01:23:17]} {[%emt 00:02:02]} 8. Be2 {[%clk
01:30:07]} {[%emt 00:02:42]} Bxf3 {[%clk 01:22:07]} {[%emt 00:01:40]} 9. Bxf3
{[%clk 01:28:39]} {[%emt 00:01:57]} c5 {[%clk 01:16:35]} {[%emt 00:06:00]} 10.
dxc6 {[%clk 01:14:14]} {[%emt 00:14:58]} bxc6 {[%clk 01:16:25]} {[%emt
00:00:40]} 11. Qd2 {[%clk 01:12:01]} {[%emt 00:02:43]} Ne7 {[%clk 01:10:25]}
{[%emt 00:06:31]} 12. Bd1 {[%clk 01:10:59]} {[%emt 00:01:31]} Rb8 {[%clk
01:01:34]} {[%emt 00:09:21]} 13. O-O {[%clk 01:06:25]} {[%emt 00:05:04]} O-O
{[%clk 00:50:47]} {[%emt 00:11:17]} 14. Ba4 {[%clk 01:05:37]} {[%emt 00:01:19]}
Qb6 {[%clk 00:47:32]} {[%emt 00:03:44]} 15. Rab1 {[%clk 01:00:39]} {[%emt
00:05:28]} Qc5 {[%clk 00:46:36]} {[%emt 00:01:27]} 16. Qd3 {[%clk 00:59:27]}
{[%emt 00:01:42]} Rb4 {[%clk 00:44:05]} {[%emt 00:03:01]} 17. b3 {[%clk
00:58:43]} {[%emt 00:01:13]} d5 {[%clk 00:39:12]} {[%emt 00:05:22]} 18. a3
{[%clk 00:38:43]} {[%emt 00:20:31]} Rbb8 {[%clk 00:27:47]} {[%emt 00:11:55]} 19.
exd5 {[%clk 00:38:59]} {[%emt 00:00:14]} cxd5 {[%clk 00:28:00]} {[%emt
00:00:16]} 20. Nxd5 {[%clk 00:36:50]} {[%emt 00:02:39]} Nxd5 {[%clk 00:28:19]}
{[%emt 00:00:11]} 21. cxd5 {[%clk 00:37:09]} {[%emt 00:00:11]} Qxd5 {[%clk
00:27:05]} {[%emt 00:01:44]} 22. Qa6 {[%clk 00:35:02]} {[%emt 00:02:36]} Qc5
{[%clk 00:24:02]} {[%emt 00:03:33]} 23. b4 {[%clk 00:33:49]} {[%emt 00:01:43]}
Qb6 {[%clk 00:22:59]} {[%emt 00:01:33]} 24. Qxb6 {[%clk 00:21:55]} {[%emt
00:12:24]} axb6 {[%clk 00:22:32]} {[%emt 00:00:57]} 25. Bd1 {[%clk 00:19:42]}
{[%emt 00:02:43]} b5 {[%clk 00:21:22]} {[%emt 00:01:40]} 26. Rc1 {[%clk
00:12:14]} {[%emt 00:07:58]} Ra8 {[%clk 00:18:44]} {[%emt 00:03:08]} 27. Rc3
{[%clk 00:10:26]} {[%emt 00:02:18]} e4 {[%clk 00:16:13]} {[%emt 00:03:02]} 28.
Bxd4 {[%clk 00:10:42]} {[%emt 00:00:13]} Bxd4 {[%clk 00:16:40]} {[%emt
00:00:02]} 29. Rb3 {[%clk 00:11:00]} {[%emt 00:00:12]} Rfc8 {[%clk 00:15:08]}
{[%emt 00:02:03]} 30. Be2 {[%clk 00:11:09]} {[%emt 00:00:21]} Rc3 {[%clk
00:13:31]} {[%emt 00:02:06]} 31. Rxc3 {[%clk 00:11:22]} {[%emt 00:00:18]} Bxc3
{[%clk 00:14:00]} {[%emt 00:00:01]} 32. Bxb5 {[%clk 00:11:45]} {[%emt
00:00:07]} Rxa3 {[%clk 00:14:12]} {[%emt 00:00:17]} 33. Rb1 {[%clk 00:05:38]}
{[%emt 00:06:37]} Kg7 {[%clk 00:09:07]} {[%emt 00:05:35]} 34. Kf1 {[%clk
00:05:14]} {[%emt 00:00:54]} f5 {[%clk 00:06:26]} {[%emt 00:03:12]} 35. g3
{[%clk 00:01:14]} {[%emt 00:04:30]} Bd4 {[%clk 00:01:07]} {[%emt 00:05:48]} 36.
Rd1 {[%clk 00:01:03]} {[%emt 00:00:41]} Bc3 {[%clk 00:01:30]} {[%emt 00:00:07]}
37. Rb1 {[%clk 00:00:59]} {[%emt 00:00:34]} Bd4 {[%clk 00:00:49]} {[%emt
00:01:11]} 38. Rd1 {[%clk 00:01:24]} {[%emt 00:00:06]} Bc3 {[%clk 00:01:17]}
{[%emt 00:00:02]} 39. Rb1 {[%clk 00:01:48]} {[%emt 00:00:06]} Kf6 {[%clk
00:01:05]} {[%emt 00:00:41]} 40. Bc4 {[%clk 00:00:47]} {[%emt 00:19:29]} Bd4
{[%clk 00:00:37]} {[%emt 00:02:58]} 41. Be2 {[%clk 00:11:19]} {[%emt 00:19:58]}
g5 {[%clk 00:25:21]} {[%emt 00:05:46]} 42. b5 {[%clk 00:09:56]} {[%emt
00:01:54]} Bb6 {[%clk 00:24:31]} {[%emt 00:01:19]} 43. Rc1 {[%clk 00:06:27]}
{[%emt 00:03:59]} Ke5 {[%clk 00:17:50]} {[%emt 00:07:11]} 44. Rc6 {[%clk
00:06:56]} {[%emt 00:00:01]} Bd4 {[%clk 00:17:04]} {[%emt 00:01:16]} 45. Ra6
{[%clk 00:07:04]} {[%emt 00:00:22]} Rb3 {[%clk 00:13:28]} {[%emt 00:04:06]} 46.
Bc4 {[%clk 00:07:00]} {[%emt 00:00:34]} Rb1+ {[%clk 00:13:46]} {[%emt
00:00:11]} 47. Kg2 {[%clk 00:07:29]} {[%emt 00:00:01]} Bc5 {[%clk 00:12:58]}
{[%emt 00:01:18]} 48. Rc6 {[%clk 00:04:30]} {[%emt 00:03:29]} Kd4 {[%clk
00:12:05]} {[%emt 00:01:23]} 49. Bg8 {[%clk 00:02:49]} {[%emt 00:02:11]} Rb2
{[%clk 00:06:43]} {[%emt 00:05:52]} 50. Kg1 {[%clk 00:01:28]} {[%emt 00:01:50]}
Rb1+ {[%clk 00:05:40]} {[%emt 00:01:34]} 51. Kg2 {[%clk 00:01:56]} {[%emt
00:00:03]} Rb2 {[%clk 00:06:07]} {[%emt 00:00:02]} 52. Kg1 {[%clk 00:01:39]}
{[%emt 00:00:47]} f4 {[%clk 00:02:18]} {[%emt 00:04:19]} 53. gxf4 {[%clk
00:02:09]} gxf4 {[%clk 00:02:35]} {[%emt 00:00:13]} 54. Bxh7 {[%clk 00:02:15]}
{[%emt 00:00:24]} Rxb5 {[%clk 00:02:33]} {[%emt 00:00:33]} 55. Re6 {[%clk
00:00:59]} {[%emt 00:01:46]} Rb1+ {[%clk 00:01:36]} {[%emt 00:01:27]} 56. Kg2
{[%clk 00:01:28]} {[%emt 00:00:02]} Re1 {[%clk 00:01:53]} {[%emt 00:00:12]} 57.
h4 {[%clk 00:00:40]} {[%emt 00:01:17]} Re2 {[%clk 00:01:41]} {[%emt 00:00:42]}
58. Kf1 {[%clk 00:00:37]} {[%emt 00:00:33]} f3 {[%clk 00:01:51]} {[%emt
00:00:20]} 59. Re8 {[%clk 00:00:40]} {[%emt 00:00:27]} Kd3 {[%clk 00:01:41]}
{[%emt 00:00:40]} 60. Rd8+ {[%clk 00:00:35]} {[%emt 00:00:36]} Kc3 {[%clk
00:01:35]} {[%emt 00:00:35]} 61. Bxe4 {[%clk 00:00:40]} {[%emt 00:00:25]} Rxf2+
{[%clk 00:01:17]} {[%emt 00:00:48]} 62. Ke1 {[%clk 00:01:09]} Re2+ {[%clk
00:01:40]} {[%emt 00:00:08]} 63. Kf1 {[%clk 00:01:27]} {[%emt 00:00:13]} Rxe4
{[%clk 00:01:49]} {[%emt 00:00:20]} 64. Rd5 {[%clk 00:01:08]} {[%emt 00:00:49]}
Bd4 {[%clk 00:01:21]} {[%emt 00:00:58]} 65. Rf5 {[%clk 00:01:37]} {[%emt
00:00:01]} f2 {[%clk 00:01:25]} {[%emt 00:00:27]} 66. h5 {[%clk 00:01:57]}
{[%emt 00:00:10]} Re1+ {[%clk 00:01:37]} {[%emt 00:00:17]} 67. Kg2 {[%clk
00:02:26]} Rg1+ {[%clk 00:01:59]} {[%emt 00:00:09]} 0-1

[Event "SS Manhem Chess Week GM and IM tournaments 2018"]
[Site "Molnlycke kulturhus, Biblioteksgatan 2, Molnlycke, Sweden"]
[Date "2018.08.14"]
[Round "5.7"]
[White "Rydstrom, Tom"]
[Black "Hobber, Anders"]
[Result "1/2-1/2"]
[TimeControl "90 minutes for 40 moves + 30 minutes for the rest of the game + 30 seconds per move from move one."]
[WhiteTitle "FM"]
[BlackTitle "FM"]
[WhiteFideId "1714830"]
[BlackFideId "1505424"]
[WhiteElo "2316"]
[BlackElo "2314"]

1. e4 {[%clk 01:22:23]} {[%emt 00:08:35]} c6 {[%clk 01:30:32]} {[%emt
00:00:29]} 2. Nc3 {[%clk 01:22:33]} {[%emt 00:00:21]} d5 {[%clk 01:30:42]}
{[%emt 00:00:20]} 3. Nf3 {[%clk 01:22:09]} {[%emt 00:00:54]} Bg4 {[%clk
01:30:42]} {[%emt 00:00:29]} 4. h3 {[%clk 01:22:12]} {[%emt 00:00:28]} Bxf3
{[%clk 01:30:48]} {[%emt 00:00:24]} 5. Qxf3 {[%clk 01:22:38]} {[%emt 00:00:04]}
e6 {[%clk 01:30:00]} {[%emt 00:01:18]} 6. d4 {[%clk 01:22:50]} {[%emt
00:00:18]} Qb6 {[%clk 01:17:04]} {[%emt 00:13:25]} 7. Bd3 {[%clk 01:18:39]}
{[%emt 00:04:42]} Nf6 {[%clk 01:09:22]} {[%emt 00:08:12]} 8. O-O {[%clk
01:18:47]} {[%emt 00:00:21]} Qxd4 {[%clk 00:53:44]} {[%emt 00:16:09]} 9. Be3
{[%clk 01:11:53]} {[%emt 00:07:24]} dxe4 {[%clk 00:41:44]} {[%emt 00:12:31]} 10.
Nxe4 {[%clk 01:12:18]} {[%emt 00:00:05]} Qd8 {[%clk 00:41:46]} {[%emt
00:00:28]} 11. Rad1 {[%clk 01:09:53]} {[%emt 00:02:55]} Nbd7 {[%clk 00:40:09]}
{[%emt 00:02:06]} 12. Qg3 {[%clk 01:05:28]} {[%emt 00:04:55]} Nh5 {[%clk
00:37:43]} {[%emt 00:02:56]} 13. Nd6+ {[%clk 00:54:10]} {[%emt 00:11:49]} Bxd6
{[%clk 00:37:44]} {[%emt 00:00:29]} 14. Qxd6 {[%clk 00:54:28]} {[%emt
00:00:11]} Qe7 {[%clk 00:31:49]} {[%emt 00:06:24]} 15. Qc7 {[%clk 00:53:12]}
{[%emt 00:01:47]} Nb6 {[%clk 00:32:08]} {[%emt 00:00:11]} 16. Qe5 {[%clk
00:33:32]} {[%emt 00:20:09]} Nf6 {[%clk 00:32:16]} {[%emt 00:00:23]} 17. c4
{[%clk 00:27:35]} {[%emt 00:06:28]} Nbd7 {[%clk 00:27:00]} {[%emt 00:05:46]} 18.
Qc7 {[%clk 00:27:12]} {[%emt 00:00:53]} Nb6 {[%clk 00:23:46]} {[%emt 00:03:44]}
19. Bxb6 {[%clk 00:23:09]} {[%emt 00:04:33]} axb6 {[%clk 00:24:10]} {[%emt
00:00:05]} 20. Qxb6 {[%clk 00:23:33]} {[%emt 00:00:06]} Rxa2 {[%clk 00:17:05]}
{[%emt 00:07:35]} 21. Ra1 {[%clk 00:23:40]} {[%emt 00:00:22]} Rxa1 {[%clk
00:17:30]} {[%emt 00:00:05]} 22. Rxa1 {[%clk 00:24:07]} {[%emt 00:00:04]} O-O
{[%clk 00:17:35]} {[%emt 00:00:25]} 23. Ra7 {[%clk 00:23:35]} {[%emt 00:01:03]}
Rb8 {[%clk 00:17:50]} {[%emt 00:00:15]} 24. Be2 {[%clk 00:19:22]} {[%emt
00:04:43]} e5 {[%clk 00:17:34]} {[%emt 00:00:45]} 25. b4 {[%clk 00:15:46]}
{[%emt 00:04:06]} Qd7 {[%clk 00:15:03]} {[%emt 00:03:01]} 26. g3 {[%clk
00:09:36]} {[%emt 00:06:40]} h6 {[%clk 00:13:37]} {[%emt 00:01:56]} 27. Bf3
{[%clk 00:07:36]} {[%emt 00:02:30]} e4 {[%clk 00:12:39]} {[%emt 00:01:27]} 28.
Bg2 {[%clk 00:08:04]} {[%emt 00:00:02]} Qc8 {[%clk 00:11:36]} {[%emt 00:01:33]}
29. Kh2 {[%clk 00:05:50]} {[%emt 00:02:45]} Qd7 {[%clk 00:06:08]} {[%emt
00:05:58]} 30. Kg1 {[%clk 00:05:31]} {[%emt 00:00:49]} Qd1+ {[%clk 00:05:50]}
{[%emt 00:00:47]} 1/2-1/2